fUST/lending_fUST_20250219
["ID","MTS","AMOUNT","RATE_DAILY","PERIOD"]
[353643516,1739979048662,-500.0,0.00013945,2]
[353643517,1739979048672,-500.0,0.00013945,2]
[353643518,1739979048681,-500.0,0.00013945,2]
[353643519,1739979048691,-161.24,0.00013945,2]
[353643520,1739979048701,-500.0,0.00013945,2]
[353643521,1739979048715,-535.7,0.00013945,2]
[353643522,1739979048725,-500.0,0.00013945,2]
[353643523,1739979048735,-630.85,0.00013945,2]
[353643524,1739979048744,-389.43,0.00013945,2]
[353643525,1739979048754,-546.68,0.00013945,2]
[353643526,1739979048765,-500.0,0.00013945,2]
[353643527,1739979048777,-2150.34,0.00013945,2]
[353643528,1739979048789,-500.0,0.00013945,2]
[353643529,1739979048798,-8482.81,0.00013945,2]
[353643530,1739979048809,-500.0,0.00013945,2]
[353643531,1739979048822,-540.31,0.00013945,2]
[353643532,1739979048838,-500.0,0.00013945,2]
[353643533,1739979048850,-1293.58,0.00013945,2]
[353643534,1739979048861,-3337.23,0.00013945,2]
[353643535,1739979048871,-500.0,0.00013945,2]
[353643536,1739979048880,-582.42,0.00013945,2]
[353643537,1739979048890,-913.11,0.00013945,2]
[353643538,1739979048901,-308.92749742,0.00013945,2]
[353643539,1739979048912,-500.0,0.00014027,2]
[353643540,1739979048923,-500.0,0.00014027,2]
[353643541,1739979048933,-629.72,0.00014027,2]
[353643542,1739979048943,-211.30816265,0.00014027,2]
[353643543,1739979048952,-500.0,0.00014027,2]
[353643544,1739979048962,-500.0,0.00014027,2]
[353643545,1739979048971,-500.0,0.00014027,2]
[353643546,1739979048981,-964.05,0.00014027,2]
[353643547,1739979048991,-500.0,0.00014027,2]
[353643548,1739979049001,-500.0,0.00014027,2]
[353643549,1739979049011,-500.0,0.00014027,2]
[353643550,1739979049021,-500.0,0.00014027,2]
[353643551,1739979049031,-500.0,0.00014027,2]
[353643552,1739979049041,-500.0,0.00014027,2]
[353643553,1739979049051,-764.05,0.00014027,2]
[353643554,1739979049061,-2540.34,0.00014027,2]
[353643555,1739979049072,-432.59,0.00014027,2]
[353643556,1739979049082,-500.0,0.00014027,2]
[353643557,1739979049092,-500.0,0.00014027,2]
[353643558,1739979049102,-500.0,0.00014027,2]
[353643559,1739979049112,-535.7,0.00014027,2]
[353643560,1739979049122,-500.0,0.00014027,2]
[353643561,1739979049132,-630.85,0.00014027,2]
[353643562,1739979049142,-500.0,0.00014027,2]
[353643563,1739979049152,-2150.34,0.00014027,2]
[353643564,1739979049161,-500.0,0.00014027,2]
[353643565,1739979049170,-8482.81,0.00014027,2]
[353643566,1739979049180,-500.0,0.00014027,2]
[353643567,1739979049190,-540.31,0.00014027,2]
[353643568,1739979049200,-500.0,0.00014027,2]
[353643569,1739979049210,-1293.58,0.00014027,2]
[353643570,1739979049221,-3337.23,0.00014027,2]
[353643571,1739979049233,-500.0,0.00014027,2]
[353643572,1739979049243,-913.11,0.00014027,2]
[353643573,1739979049253,-1152.0,0.00014033,2]
[353643574,1739979049263,-151.0,0.000141,2]
[353643575,1739979049273,-151.0,0.000141,2]
[353643576,1739979049283,-500.0,0.00014109,2]
[353643577,1739979049293,-500.0,0.00014109,2]
[353643578,1739979049303,-546.45,0.00014109,2]
[353643579,1739979049313,-500.0,0.00014109,2]
[353643580,1739979049323,-500.0,0.00014109,2]
[353643581,1739979049333,-964.05,0.00014109,2]
[353643582,1739979049343,-500.0,0.00014109,2]
[353643583,1739979049353,-500.0,0.00014109,2]
[353643584,1739979049364,-271.5,0.00014109,2]
[353643585,1739979049374,-500.0,0.00014109,2]
[353643586,1739979049384,-500.0,0.00014109,2]
[353643587,1739979049394,-764.05,0.00014109,2]
[353643588,1739979049404,-2540.34,0.00014109,2]
[353643589,1739979049415,-500.0,0.00014109,2]
[353643590,1739979049424,-534.01482115,0.00014109,2]
[353643591,1739979049435,-500.0,0.00014109,2]
[353643592,1739979049445,-535.7,0.00014109,2]
[353643593,1739979049455,-500.0,0.00014109,2]
[353643594,1739979049464,-630.85,0.00014109,2]
[353643595,1739979049474,-500.0,0.00014109,2]
[353643596,1739979049484,-2150.34,0.00014109,2]
[353643597,1739979049494,-500.0,0.00014109,2]
[353643598,1739979049505,-8482.81,0.00014109,2]
[353643599,1739979049515,-500.0,0.00014109,2]
[353643600,1739979049525,-540.31,0.00014109,2]
[353643601,1739979049534,-500.0,0.00014109,2]
[353643602,1739979049546,-1293.58,0.00014109,2]
[353643603,1739979049555,-3337.23,0.00014109,2]
[353643604,1739979049565,-500.0,0.00014109,2]
[353643605,1739979049574,-913.11,0.00014109,2]
[353643606,1739979049583,-500.0,0.00014191,2]
[353643607,1739979049593,-500.0,0.00014191,2]
[353643608,1739979049602,-392.68,0.00014191,2]
[353643609,1739979049611,-500.0,0.00014191,2]
[353643610,1739979049621,-964.05,0.00014191,2]
[353643611,1739979049630,-500.0,0.00014191,2]
[353643612,1739979049640,-416.93040091,0.00014191,2]
[353643613,1739979049649,-500.0,0.00014191,2]
[353643614,1739979049659,-500.0,0.00014191,2]
[353643615,1739979049669,-764.05,0.00014191,2]
[353643616,1739979049678,-2540.34,0.00014191,2]
[353643617,1739979049688,-500.0,0.00014191,2]
[353643618,1739979049698,-535.7,0.00014191,2]
[353643619,1739979049707,-500.0,0.00014191,2]
[353643620,1739979049716,-630.85,0.00014191,2]
[353643621,1739979049726,-500.0,0.00014191,2]
[353643622,1739979049735,-2150.34,0.00014191,2]
[353643623,1739979049745,-500.0,0.00014191,2]
[353643624,1739979049754,-8482.81,0.00014191,2]
[353643625,1739979049764,-500.0,0.00014191,2]
[353643626,1739979049773,-540.31,0.00014191,2]
[353643627,1739979049783,-500.0,0.00014191,2]
[353643628,1739979049794,-1293.58,0.00014191,2]
[353643629,1739979049804,-3337.23,0.00014191,2]
[353643630,1739979049817,-606.60892472,0.00014191,2]
[353643631,1739979049827,-913.11,0.00014191,2]
[353643632,1739979049837,-151.0,0.000142,2]
[353643633,1739979049846,-1007.8268122,0.00014247,2]
[353643634,1739979049856,-684.97113629,0.00014247,2]
[353643635,1739979049866,-500.0,0.00014247,2]
[353643636,1739979049876,-1000.0,0.00014247,2]
[353643637,1739979049886,-1072.78652871,0.00014247,2]
[353643638,1739979049895,-1000.0,0.00014247,2]
[353643639,1739979049905,-1000.0,0.00014247,2]
[353643640,1739979049914,-1097.04980234,0.00014247,2]
[353643641,1739979049924,-500.0,0.00014273,2]
[353643642,1739979049933,-500.0,0.00014273,2]
[353643643,1739979049943,-511.34,0.00014273,2]
[353643644,1739979049951,-964.05,0.00014273,2]
[353643645,1739979049960,-500.0,0.00014273,2]
[353643646,1739979049970,-500.0,0.00014273,2]
[353643647,1739979049979,-764.05,0.00014273,2]
[353643648,1739979049989,-2540.34,0.00014273,2]
[353643649,1739979049999,-500.0,0.00014273,2]
[353643650,1739979050009,-535.7,0.00014273,2]
[353643651,1739979050019,-248.93,0.00014273,2]
[353643652,1739979050029,-630.85,0.00014273,2]
[353643653,1739979050039,-500.0,0.00014273,2]
[353643654,1739979050049,-2150.34,0.00014273,2]
[353643655,1739979050059,-500.0,0.00014273,2]
[353643656,1739979050069,-8482.81,0.00014273,2]
[353643657,1739979050079,-500.0,0.00014273,2]
[353643658,1739979050088,-540.31,0.00014273,2]
[353643659,1739979050098,-500.0,0.00014273,2]
[353643660,1739979050107,-1293.58,0.00014273,2]
[353643661,1739979050116,-3337.23,0.00014273,2]
[353643662,1739979050126,-913.11,0.00014273,2]
[353643663,1739979050135,-500.0,0.00014356,2]
[353643664,1739979050145,-500.0,0.00014356,2]
[353643665,1739979050155,-964.05,0.00014356,2]
[353643666,1739979050166,-500.0,0.00014356,2]
[353643667,1739979050176,-500.0,0.00014356,2]
[353643668,1739979050185,-764.05,0.00014356,2]
[353643669,1739979050195,-2540.34,0.00014356,2]
[353643670,1739979050203,-500.0,0.00014356,2]
[353643671,1739979050213,-535.7,0.00014356,2]
[353643672,1739979050222,-630.85,0.00014356,2]
[353643673,1739979050232,-500.0,0.00014356,2]
[353643674,1739979050242,-2150.34,0.00014356,2]
[353643675,1739979050252,-500.0,0.00014356,2]
[353643676,1739979050262,-8482.81,0.00014356,2]
[353643677,1739979050271,-283.3148893,0.00014356,2]
[353643678,1739979050281,-540.31,0.00014356,2]
[353643679,1739979050290,-500.0,0.00014356,2]
[353643680,1739979050300,-1293.58,0.00014356,2]
[353643681,1739979050309,-3337.23,0.00014356,2]
[353643682,1739979050319,-913.11,0.00014356,2]
[353643683,1739979050328,-153.36348279,0.000144,2]
[353643684,1739979050338,-153.36348279,0.000144,2]
[353643685,1739979050348,-153.36348279,0.000144,2]
[353643686,1739979050358,-153.36348279,0.000144,2]
[353643687,1739979050367,-153.36348279,0.000144,2]
[353643688,1739979050376,-153.36348279,0.000144,2]
[353643689,1739979050387,-153.36,0.000144,2]
[353643690,1739979050396,-152.53437279,0.000144,2]
[353643691,1739979050406,-152.53437279,0.000144,2]
[353643692,1739979050418,-152.53437279,0.000144,2]
[353643693,1739979050427,-152.53437279,0.000144,2]
[353643694,1739979050437,-152.53437279,0.000144,2]
[353643695,1739979050446,-152.53437279,0.000144,2]
[353643696,1739979050456,-152.53437279,0.000144,2]
[353643697,1739979050465,-152.53437279,0.000144,2]
[353643698,1739979050474,-152.53437279,0.000144,2]
[353643699,1739979050483,-152.53437279,0.000144,2]
[353643700,1739979050494,-152.53437279,0.000144,2]
[353643701,1739979050503,-152.53437279,0.000144,2]
[353643702,1739979050512,-152.53437279,0.000144,2]
[353643703,1739979050522,-152.53437279,0.000144,2]
[353643704,1739979050531,-152.53437279,0.000144,2]
[353643705,1739979050540,-152.53437279,0.000144,2]
[353643706,1739979050549,-152.53,0.000144,2]
[353643707,1739979050559,-179.74835231,0.000144,2]
[353643708,1739979050568,-500.0,0.00014438,2]
[353643709,1739979050577,-500.0,0.00014438,2]
[353643710,1739979050587,-964.05,0.00014438,2]
[353643711,1739979050597,-500.0,0.00014438,2]
[353643712,1739979050606,-500.0,0.00014438,2]
[353643713,1739979050616,-764.05,0.00014438,2]
[353643714,1739979050626,-2540.34,0.00014438,2]
[353643715,1739979050636,-500.0,0.00014438,2]
[353643716,1739979050646,-535.7,0.00014438,2]
[353643717,1739979050655,-630.85,0.00014438,2]
[353643718,1739979050666,-500.0,0.00014438,2]
[353643719,1739979050675,-2150.34,0.00014438,2]
[353643720,1739979050684,-500.0,0.00014438,2]
[353643721,1739979050694,-8482.81,0.00014438,2]
[353643722,1739979050703,-540.31,0.00014438,2]
[353643723,1739979050713,-500.0,0.00014438,2]
[353643724,1739979050723,-1293.58,0.00014438,2]
[353643725,1739979050731,-3337.23,0.00014438,2]
[353643726,1739979050740,-913.11,0.00014438,2]
[353643727,1739979050749,-900.0,0.00014438,2]
[353643728,1739979050759,-151.0,0.000145,2]
[353643729,1739979050768,-151.0,0.000145,2]
[353643730,1739979050778,-151.0,0.000145,2]
[353643731,1739979050788,-224392.04207809,0.000145,2]
[353643732,1739979050805,-500.0,0.0001452,2]
[353643733,1739979050815,-964.05,0.0001452,2]
[353643734,1739979050825,-635.70642689,0.0001452,2]
[353643735,1739979050834,-374.5,0.0001452,2]
[353643736,1739979050844,-764.05,0.0001452,2]
[353643737,1739979050854,-2540.34,0.0001452,2]
[353643738,1739979050863,-500.0,0.0001452,2]
[353643739,1739979050966,-535.7,0.0001452,2]
[353643740,1739979050975,-630.85,0.0001452,2]
[353643741,1739979050984,-500.0,0.0001452,2]
[353643742,1739979050994,-2150.34,0.0001452,2]
[353643743,1739979051004,-379.81,0.0001452,2]
[353643744,1739979051014,-8482.81,0.0001452,2]
[353643745,1739979051023,-540.31,0.0001452,2]
[353643746,1739979051033,-305.41,0.0001452,2]
[353643747,1739979051043,-1293.58,0.0001452,2]
[353643748,1739979051053,-3337.23,0.0001452,2]
[353643749,1739979051063,-913.11,0.0001452,2]
[353643750,1739979051072,-500.0,0.00014602,2]
[353643751,1739979051081,-964.05,0.00014602,2]
[353643752,1739979051090,-764.05,0.00014602,2]
[353643753,1739979051099,-2540.34,0.00014602,2]
[353643754,1739979051109,-500.0,0.00014602,2]
[353643755,1739979051119,-535.7,0.00014602,2]
[353643756,1739979051128,-630.85,0.00014602,2]
[353643757,1739979051138,-500.0,0.00014602,2]
[353643758,1739979051148,-2150.34,0.00014602,2]
[353643759,1739979051158,-8482.81,0.00014602,2]
[353643760,1739979051168,-540.31,0.00014602,2]
[353643761,1739979051177,-1293.58,0.00014602,2]
[353643762,1739979051187,-3337.23,0.00014602,2]
[353643763,1739979051196,-913.11,0.00014602,2]
[353643764,1739979051206,-162.11653626,0.00014653,2]
[353643765,1739979051215,-572.311,0.00014653,2]
[353643766,1739979051224,-186.80876158,0.00014674,2]
[353643767,1739979051233,-500.0,0.00014684,2]
[353643768,1739979051242,-964.05,0.00014684,2]
[353643769,1739979051252,-764.05,0.00014684,2]
[353643770,1739979051261,-2540.34,0.00014684,2]
[353643771,1739979051269,-500.0,0.00014684,2]
[353643772,1739979051278,-535.7,0.00014684,2]
[353643773,1739979051287,-630.85,0.00014684,2]
[353643774,1739979051298,-500.0,0.00014684,2]
[353643775,1739979051308,-2150.34,0.00014684,2]
[353643776,1739979051317,-8482.81,0.00014684,2]
[353643777,1739979051327,-540.31,0.00014684,2]
[353643778,1739979051336,-1293.58,0.00014684,2]
[353643779,1739979051345,-3337.23,0.00014684,2]
[353643780,1739979051355,-913.11,0.00014684,2]
[353643781,1739979051365,-192.0,0.00014737,2]
[353643782,1739979051374,-500.0,0.00014767,2]
[353643783,1739979051383,-964.05,0.00014767,2]
[353643784,1739979051393,-764.05,0.00014767,2]
[353643785,1739979051401,-2540.34,0.00014767,2]
[353643786,1739979051412,-500.0,0.00014767,2]
[353643787,1739979051423,-535.7,0.00014767,2]
[353643788,1739979051433,-630.85,0.00014767,2]
[353643789,1739979051442,-525.74244067,0.00014767,2]
[353643790,1739979051452,-2150.34,0.00014767,2]
[353643791,1739979051461,-8482.81,0.00014767,2]
[353643792,1739979051470,-540.31,0.00014767,2]
[353643793,1739979051480,-1293.58,0.00014767,2]
[353643794,1739979051489,-3337.23,0.00014767,2]
[353643795,1739979051498,-913.11,0.00014767,2]
[353643796,1739979051507,-1202.16546644,0.000148,2]
[353643797,1739979051516,-500.0,0.00014849,2]
[353643798,1739979051525,-964.05,0.00014849,2]
[353643799,1739979051534,-764.05,0.00014849,2]
[353643800,1739979051544,-2540.34,0.00014849,2]
[353643801,1739979051553,-500.0,0.00014849,2]
[353643802,1739979051562,-535.7,0.00014849,2]
[353643803,1739979051571,-630.85,0.00014849,2]
[353643804,1739979051581,-2150.34,0.00014849,2]
[353643805,1739979051590,-8482.81,0.00014849,2]
[353643806,1739979051599,-540.31,0.00014849,2]
[353643807,1739979051608,-1293.58,0.00014849,2]
[353643808,1739979051618,-3337.23,0.00014849,2]
[353643809,1739979051627,-913.11,0.00014849,2]
[353643810,1739979051637,-348340.270501,0.000149,2]
[353643811,1739979051646,-568.57606602,0.000149,2]
[353643812,1739979051655,-241.52657166,0.00014931,2]
[353643813,1739979051664,-964.05,0.00014931,2]
[353643814,1739979051673,-764.05,0.00014931,2]
[353643815,1739979051683,-2540.34,0.00014931,2]
[353643816,1739979051692,-500.0,0.00014931,2]
[353643817,1739979051702,-535.7,0.00014931,2]
[353643818,1739979051711,-630.85,0.00014931,2]
[353643819,1739979051720,-2150.34,0.00014931,2]
[353643820,1739979051730,-8482.81,0.00014931,2]
[353643821,1739979051739,-540.31,0.00014931,2]
[353643822,1739979051749,-1293.58,0.00014931,2]
[353643823,1739979051758,-3337.23,0.00014931,2]
[353643824,1739979051767,-913.11,0.00014931,2]
[353643825,1739979051777,-501.56720577,0.00014998,2]
[353643826,1739979051786,-6406.91950664,0.00015,3]
[353643827,1739979051797,-200.2255343,0.00015,2]
[353643828,1739979051806,-3646.4315377,0.00015,2]
[353643829,1739979051815,-964.05,0.00015013,2]
[353643830,1739979051825,-764.05,0.00015013,2]
[353643831,1739979051833,-2540.34,0.00015013,2]
[353643832,1739979051843,-500.0,0.00015013,2]
[353643833,1739979051852,-535.7,0.00015013,2]
[353643834,1739979051861,-630.85,0.00015013,2]
[353643835,1739979051871,-2150.34,0.00015013,2]
[353643836,1739979051880,-8482.81,0.00015013,2]
[353643837,1739979051890,-540.31,0.00015013,2]
[353643838,1739979051899,-1293.58,0.00015013,2]
[353643839,1739979051908,-3337.23,0.00015013,2]
[353643840,1739979051918,-913.11,0.00015013,2]
[353643841,1739979051928,-162.71656321,0.00015019,2]
[353643842,1739979051938,-162.71656321,0.00015019,2]
[353643843,1739979051950,-162.71,0.00015019,2]
[353643844,1739979051959,-156.55855535,0.00015019,2]
[353643845,1739979051968,-156.55855535,0.00015019,2]
[353643846,1739979051978,-156.55855535,0.00015019,2]
[353643847,1739979051987,-156.55855535,0.00015019,2]
[353643848,1739979051997,-156.55855535,0.00015019,2]
[353643849,1739979052006,-156.55855535,0.00015019,2]
[353643850,1739979052015,-156.55855535,0.00015019,2]
[353643851,1739979052024,-156.55855535,0.00015019,2]
[353643852,1739979052033,-156.55855535,0.00015019,2]
[353643853,1739979052043,-156.55855535,0.00015019,2]
[353643854,1739979052052,-156.55855535,0.00015019,2]
[353643855,1739979052062,-156.55855535,0.00015019,2]
[353643856,1739979052071,-156.55855535,0.00015019,2]
[353643857,1739979052080,-156.55855535,0.00015019,2]
[353643858,1739979052090,-156.55855535,0.00015019,2]
[353643859,1739979052099,-156.55,0.00015019,2]
[353643860,1739979052107,-302.52650604,0.00015019,2]
[353643861,1739979052117,-302.52650604,0.00015019,2]
[353643862,1739979052126,-302.52650604,0.00015019,2]
[353643863,1739979052135,-302.52650604,0.00015019,2]
[353643864,1739979052145,-302.52650604,0.00015019,2]
[353643865,1739979052155,-302.52650604,0.00015019,2]
[353643866,1739979052165,-302.52650604,0.00015019,2]
[353643867,1739979052174,-302.52650604,0.00015019,2]
[353643868,1739979052183,-302.52650604,0.00015019,2]
[353643869,1739979052193,-302.52650604,0.00015019,2]
[353643870,1739979052202,-302.52650604,0.00015019,2]
[353643871,1739979052213,-302.52650604,0.00015019,2]
[353643872,1739979052223,-302.52650604,0.00015019,2]
[353643873,1739979052232,-302.52650604,0.00015019,2]
[353643874,1739979052241,-302.52650604,0.00015019,2]
[353643875,1739979052250,-302.52650604,0.00015019,2]
[353643876,1739979052260,-302.52650604,0.00015019,2]
[353643877,1739979052269,-302.52650604,0.00015019,2]
[353643878,1739979052279,-302.52650604,0.00015019,2]
[353643879,1739979052287,-302.52,0.00015019,2]
[353643880,1739979052297,-160.0,0.00015075,3]
[353643881,1739979052306,-964.05,0.00015095,2]
[353643882,1739979052315,-764.05,0.00015095,2]
[353643883,1739979052324,-2540.34,0.00015095,2]
[353643884,1739979052333,-500.0,0.00015095,2]
[353643885,1739979052343,-535.7,0.00015095,2]
[353643886,1739979052352,-630.85,0.00015095,2]
[353643887,1739979052361,-2150.34,0.00015095,2]
[353643888,1739979052371,-8482.81,0.00015095,2]
[353643889,1739979052380,-540.31,0.00015095,2]
[353643890,1739979052389,-1293.58,0.00015095,2]
[353643891,1739979052398,-3337.23,0.00015095,2]
[353643892,1739979052407,-913.11,0.00015095,2]
[353643893,1739979052417,-7438.69753278,0.00015119,2]
[353643894,1739979052427,-964.05,0.00015178,2]
[353643895,1739979052439,-764.05,0.00015178,2]
[353643896,1739979052448,-2540.34,0.00015178,2]
[353643897,1739979052457,-500.0,0.00015178,2]
[353643898,1739979052466,-535.7,0.00015178,2]
[353643899,1739979052478,-630.85,0.00015178,2]
[353643900,1739979052488,-2150.34,0.00015178,2]
[353643901,1739979052497,-8482.81,0.00015178,2]
[353643902,1739979052508,-540.31,0.00015178,2]
[353643903,1739979052517,-1293.58,0.00015178,2]
[353643904,1739979052526,-3337.23,0.00015178,2]
[353643905,1739979052535,-913.11,0.00015178,2]
[353643906,1739979052545,-151.0,0.000152,2]
[353643907,1739979052554,-1500.0,0.00015248,2]
[353643908,1739979052563,-964.05,0.0001526,2]
[353643909,1739979052572,-764.05,0.0001526,2]
[353643910,1739979052582,-2540.34,0.0001526,2]
[353643911,1739979052591,-500.0,0.0001526,2]
[353643912,1739979052600,-535.7,0.0001526,2]
[353643913,1739979052610,-630.85,0.0001526,2]
[353643914,1739979052620,-2150.34,0.0001526,2]
[353643915,1739979052629,-7564.51926497,0.0001526,2]
[353643916,1739979052651,-329.68276536,0.0001526,2]
[353643917,1739979052662,-496.3407641,0.0001526,2]
[353643918,1739979052796,-2000.0,9.49e-05,2]
[353643919,1739979052812,-1027.49,9.49e-05,2]
[353643920,1739979053220,-23.51205653,9.49e-05,2]
[353643921,1739979053584,-1694.8,9.49e-05,2]
[353643922,1739979257964,500.0,0.00012,30]
[353643956,1739979428817,2062.01937264,9.025e-05,2]
[353643957,1739979464717,1000.0,0.00019,120]
[353643958,1739979467242,1000.0,0.00019,120]
[353643959,1739979525134,1529.87366679,0.00018,120]
[353643960,1739979525173,8470.12633321,0.00018,120]
[353643961,1739979544610,10000.0,0.00019,120]
[353643962,1739979571170,2000.0,0.00019,120]
[353643963,1739979599970,951.0,0.00019,120]
[353643964,1739979608971,2937.98062736,9.025e-05,2]
[353643965,1739979609006,2062.01937264,9.025e-05,2]
[353643966,1739979762926,-250.0,9.164e-05,2]
[353643967,1739979762949,-5000.0,9.467e-05,2]
[353643968,1739979762971,-300.0,9.998e-05,2]
[353643969,1739979762993,-459.96034169,9.999e-05,2]
[353643970,1739979763014,-307.28937549,9.999e-05,2]
[353643971,1739979763037,-500.0,9.999e-05,2]
[353643972,1739979763059,-500.0,9.999e-05,2]
[353643973,1739979763082,-500.0,9.999e-05,2]
[353643974,1739979763104,-500.0,9.999e-05,2]
[353643975,1739979763127,-500.0,9.999e-05,2]
[353643976,1739979763150,-500.0,9.999e-05,2]
[353643977,1739979763301,-500.0,9.999e-05,2]
[353643978,1739979763325,-500.0,9.999e-05,2]
[353643979,1739979763349,-643.10038171,9.999e-05,2]
[353643980,1739979763372,-500.0,9.999e-05,2]
[353643981,1739979763395,-500.0,9.999e-05,2]
[353643982,1739979763417,-500.0,9.999e-05,2]
[353643983,1739979763441,-500.0,9.999e-05,2]
[353643984,1739979763467,-500.0,9.999e-05,2]
[353643985,1739979763492,-500.0,9.999e-05,2]
[353643986,1739979763514,-4223.0,0.0001,2]
[353643987,1739979763535,-4222.0,0.0001,2]
[353643988,1739979763555,-4222.0,0.0001,2]
[353643989,1739979763578,-4222.0,0.0001,2]
[353643990,1739979763599,-4222.0,0.0001,2]
[353643991,1739979763621,-4222.0,0.0001,2]
[353643992,1739979763643,-500.0,0.000105,2]
[353643993,1739979763666,-500.0,0.000105,2]
[353643994,1739979763688,-2807.55,0.00010959,2]
[353643995,1739979763712,-6857.42,0.00010959,2]
[353643996,1739979763732,-5714.51,0.00010959,2]
[353643997,1739979763755,-4762.09,0.00010959,2]
[353643998,1739979763776,-3968.41,0.00010959,2]
[353643999,1739979763798,-3307.01,0.00010959,2]
[353644000,1739979763819,-2755.84,0.00010959,2]
[353644001,1739979763842,-2296.54,0.00010959,2]
[353644002,1739979763864,-922.67990111,0.00010959,2]
[353644003,1739979816100,363.458537,9.041e-05,2]
[353644006,1739980168150,-4328.94969121,9.164e-05,2]
[353644023,1739980232603,-300.0,9.163e-05,2]
[353644025,1739980232614,-656.59017431,9.164e-05,2]
[353644026,1739980232626,-19914.46013448,9.164e-05,2]
[353644027,1739980232636,-4697.5742343,9.238e-05,2]
[353644028,1739980232646,-420.0,0.0001008,2]
[353644029,1739980232655,-166.66666666,0.00010859,2]
[353644031,1739980232665,-1434.68,0.00010959,2]
[353644033,1739980232675,-866.61896456,0.00010959,2]
[353644051,1739980232847,-654.27103544,0.00010959,2]
[353644053,1739980232857,-1267.4,0.00010959,2]
[353644055,1739980232867,-828.32896456,0.00010959,2]
[353644265,1739980238238,-227.84103544,0.00010959,2]
[353644267,1739980238248,-880.14,0.00010959,2]
[353644269,1739980238258,-733.45,0.00010959,2]
[353644271,1739980238266,-611.21,0.00010959,2]
[353644273,1739980238278,-509.34,0.00010959,2]
[353644275,1739980238288,-424.45,0.00010959,2]
[353644277,1739980238297,-353.71,0.00010959,2]
[353644279,1739980238307,-1004.95281179,0.00011048,2]
[353644281,1739980238317,-587.0,0.00011088,2]
[353644283,1739980238327,-823.0,0.00012196,2]
[353644285,1739980238336,-166.0,0.00012329,2]
[353644287,1739980238347,-1000.0,0.00013,2]
[353644289,1739980238356,-1152.0,0.00013416,2]
[353644291,1739980238366,-152.0,0.00013599,2]
[353644293,1739980238376,-349.30541087,0.00013697,2]
[353644296,1739980238389,-150.69458913,0.00013697,2]
[353644298,1739980238400,-500.0,0.00013697,2]
[353644300,1739980238410,-557.20544133,0.00013697,2]
[353644303,1739980238420,-500.0,0.00013697,2]
[353644306,1739980238430,-500.0,0.00013698,2]
[353644308,1739980238439,-151.01949465,0.00013698,2]
[353644322,1739980238577,-339.0013,0.00013698,2]
[353644324,1739980238587,-500.0,0.00013698,2]
[353644326,1739980238597,-501.60840089,0.00013698,2]
[353644328,1739980238607,-500.0,0.00013698,2]
[353644330,1739980238616,-500.0,0.00013698,2]
[353644332,1739980238626,-500.0,0.00013698,2]
[353644334,1739980238636,-500.0,0.00013698,2]
[353644336,1739980238645,-500.0,0.00013698,2]
[353644338,1739980238654,-512.81885195,0.00013698,2]
[353644340,1739980238664,-500.0,0.00013698,2]
[353644342,1739980238674,-500.0,0.00013698,2]
[353644344,1739980238683,-500.0,0.00013698,2]